[Event "Late-Titled-Tuesday-Blitz-January-23-2024"]
[Site "Chess.com"]
[Date "2024.01.23"]
[Round "5"]
[White "bescmelasti"]
[Black "rhungaski"]
[Result "1-0"]
[WhiteElo "2698"]
[BlackElo "2507"]
[TimeControl "180+1"]
[EndTime "14:55:03 PST"]
[Termination "bescmelasti won by resignation"]

1. e4 {[%clk 0:03:00.9]} 1... e6 {[%clk 0:02:59.1]} 2. d4 {[%clk 0:02:59.3]}
2... d5 {[%clk 0:02:59.6]} 3. Nc3 {[%clk 0:03:00.2]} 3... Bb4 {[%clk 0:02:58.9]}
4. e5 {[%clk 0:03:00.3]} 4... c5 {[%clk 0:02:59.1]} 5. a3 {[%clk 0:03:01.2]}
5... Bxc3+ {[%clk 0:02:59.2]} 6. bxc3 {[%clk 0:03:02.1]} 6... Nc6 {[%clk
0:02:59.7]} 7. Qg4 {[%clk 0:02:58.1]} 7... g6 {[%clk 0:02:58.4]} 8. h4 {[%clk
0:02:52.1]} 8... h6 {[%clk 0:02:50.7]} 9. a4 {[%clk 0:02:49.4]} 9... Qa5 {[%clk
0:02:49.6]} 10. Bd2 {[%clk 0:02:49.3]} 10... c4 {[%clk 0:02:48.3]} 11. Qf4
{[%clk 0:02:47.1]} 11... Bd7 {[%clk 0:02:44.1]} 12. Nf3 {[%clk 0:02:43.9]} 12...
Rh7 {[%clk 0:02:42.5]} 13. g3 {[%clk 0:02:40.4]} 13... O-O-O {[%clk 0:02:41.5]}
14. Bg2 {[%clk 0:02:36.6]} 14... Rf8 {[%clk 0:02:36.6]} 15. O-O {[%clk
0:02:33.2]} 15... Kb8 {[%clk 0:02:30.4]} 16. Rfb1 {[%clk 0:02:26.6]} 16... Ka8
{[%clk 0:02:29.9]} 17. Rb5 {[%clk 0:02:26.4]} 17... Qd8 {[%clk 0:02:26.3]} 18.
Rab1 {[%clk 0:02:18.6]} 18... Bc8 {[%clk 0:02:12.9]} 19. Bc1 {[%clk 0:02:18.1]}
19... f5 {[%clk 0:02:09.8]} 20. Ba3 {[%clk 0:02:15.6]} 20... Nge7 {[%clk
0:01:55.2]} 21. Qc1 {[%clk 0:02:04.9]} 21... Rg8 {[%clk 0:01:49.1]} 22. Qb2
{[%clk 0:01:55]} 22... Qd7 {[%clk 0:01:41.6]} 23. a5 {[%clk 0:01:52.4]} 23... g5
{[%clk 0:01:36.7]} 24. Bc5 {[%clk 0:01:36.4]} 24... gxh4 {[%clk 0:01:21.5]} 25.
Nxh4 {[%clk 0:01:35.9]} 25... f4 {[%clk 0:01:19.8]} 26. Kh2 {[%clk 0:01:14.3]}
26... fxg3+ {[%clk 0:01:18.8]} 27. fxg3 {[%clk 0:01:15.2]} 27... Rhg7 {[%clk
0:01:18.5]} 28. a6 {[%clk 0:00:37.8]} 28... b6 {[%clk 0:01:17.8]} 29. Rxb6
{[%clk 0:00:27.1]} 29... axb6 {[%clk 0:01:15.9]} 30. Qxb6 {[%clk 0:00:28]} 30...
Ng6 {[%clk 0:00:38.5]} 31. Bh3 {[%clk 0:00:12.5]} 31... Nxh4 {[%clk 0:00:25.5]}
32. gxh4 {[%clk 0:00:13.4]} 32... Qc7 {[%clk 0:00:18.2]} 33. Qb5 {[%clk
0:00:10.2]} 33... Bd7 {[%clk 0:00:15.9]} 34. Bd6 {[%clk 0:00:09.6]} 34... Rb8
{[%clk 0:00:14.2]} 35. Bxc7 {[%clk 0:00:09]} 35... Rxb5 {[%clk 0:00:14.4]} 36.
Rxb5 {[%clk 0:00:09.9]} 36... Nxd4 {[%clk 0:00:14.4]} 37. Rb8+ {[%clk
0:00:09.2]} 37... Ka7 {[%clk 0:00:15]} 38. cxd4 {[%clk 0:00:10.1]} 38... Kxa6
{[%clk 0:00:15.4]} 39. Bd6 {[%clk 0:00:09.2]} 39... Rf7 {[%clk 0:00:15.1]} 40.
Kg3 {[%clk 0:00:08.8]} 40... Ka5 {[%clk 0:00:14.1]} 41. Rb7 {[%clk 0:00:07.4]}
41... Rg7+ {[%clk 0:00:13.5]} 42. Kf2 {[%clk 0:00:07.3]} 42... c3 {[%clk
0:00:13.9]} 43. Rc7 {[%clk 0:00:06.7]} 43... Rf7+ {[%clk 0:00:14]} 44. Ke3
{[%clk 0:00:07]} 44... Rg7 {[%clk 0:00:13.5]} 45. Bxe6 {[%clk 0:00:06.2]} 45...
Rg3+ {[%clk 0:00:13.3]} 46. Kf2 {[%clk 0:00:06.8]} 1-0

[Event "Late-Titled-Tuesday-Blitz-January-23-2024"]
[Site "Chess.com"]
[Date "2024.01.23"]
[Round "5"]
[White "DvaHrasta"]
[Black "MokshanovAlexey"]
[Result "0-1"]
[WhiteElo "2478"]
[BlackElo "2643"]
[TimeControl "180+1"]
[EndTime "14:55:03 PST"]
[Termination "MokshanovAlexey won on time"]

1. c4 {[%clk 0:03:00.9]} 1... e6 {[%clk 0:02:59.3]} 2. d4 {[%clk 0:02:59.4]}
2... d5 {[%clk 0:02:59.5]} 3. Nf3 {[%clk 0:02:59.6]} 3... Nf6 {[%clk 0:02:59.6]}
4. Bg5 {[%clk 0:02:58.5]} 4... Be7 {[%clk 0:02:59]} 5. Nc3 {[%clk 0:02:57.8]}
5... O-O {[%clk 0:02:59]} 6. e3 {[%clk 0:02:58]} 6... a6 {[%clk 0:02:59.2]} 7.
Rc1 {[%clk 0:02:57]} 7... dxc4 {[%clk 0:02:56.9]} 8. Bxc4 {[%clk 0:02:56.5]}
8... b5 {[%clk 0:02:57.4]} 9. Bd3 {[%clk 0:02:56]} 9... Bb7 {[%clk 0:02:56.9]}
10. O-O {[%clk 0:02:55.1]} 10... Nbd7 {[%clk 0:02:55.9]} 11. Bb1 {[%clk
0:02:47.4]} 11... h6 {[%clk 0:02:55.3]} 12. Bh4 {[%clk 0:02:45.5]} 12... c5
{[%clk 0:02:52.7]} 13. dxc5 {[%clk 0:02:30.6]} 13... Nxc5 {[%clk 0:02:49.5]} 14.
Ne5 {[%clk 0:02:25.7]} 14... b4 {[%clk 0:02:29.2]} 15. Ne2 {[%clk 0:02:13]}
15... Rc8 {[%clk 0:02:20.6]} 16. Nd4 {[%clk 0:02:02.5]} 16... Qd5 {[%clk
0:01:59.4]} 17. Ndf3 {[%clk 0:01:51]} 17... Rfd8 {[%clk 0:01:59.2]} 18. Qe2
{[%clk 0:01:38.5]} 18... Nce4 {[%clk 0:01:24.2]} 19. Rxc8 {[%clk 0:01:28.3]}
19... Rxc8 {[%clk 0:01:20.4]} 20. Rd1 {[%clk 0:01:27.4]} 20... Qa5 {[%clk
0:01:08.5]} 21. Nc4 {[%clk 0:01:11.9]} 21... Qb5 {[%clk 0:01:03.5]} 22. Nfe5
{[%clk 0:00:57.3]} 22... Nd6 {[%clk 0:00:40.8]} 23. b3 {[%clk 0:00:45.8]} 23...
Nde4 {[%clk 0:00:36.6]} 24. Bxf6 {[%clk 0:00:24.5]} 24... Bxf6 {[%clk
0:00:28.4]} 25. Bxe4 {[%clk 0:00:21]} 25... Bxe4 {[%clk 0:00:27.6]} 26. f3
{[%clk 0:00:19.1]} 26... Bxe5 {[%clk 0:00:26.6]} 27. fxe4 {[%clk 0:00:18.2]}
27... Bb8 {[%clk 0:00:26]} 28. Qd3 {[%clk 0:00:16.1]} 28... Qg5 {[%clk 0:00:22]}
29. g3 {[%clk 0:00:12.5]} 29... h5 {[%clk 0:00:16.3]} 30. Kg2 {[%clk 0:00:08.8]}
30... h4 {[%clk 0:00:16.2]} 31. Qd7 {[%clk 0:00:06.9]} 31... Rf8 {[%clk
0:00:13.5]} 32. Rf1 {[%clk 0:00:04.8]} 32... hxg3 {[%clk 0:00:13.2]} 33. h3
{[%clk 0:00:05.3]} 33... Qh5 {[%clk 0:00:12]} 34. Rf3 {[%clk 0:00:05.1]} 34...
a5 {[%clk 0:00:09.5]} 35. Qb7 {[%clk 0:00:03.4]} 35... Qc5 {[%clk 0:00:08.4]}
36. Qb6 {[%clk 0:00:02.4]} 36... Qxb6 {[%clk 0:00:05.5]} 37. Nxb6 {[%clk
0:00:03.3]} 37... Rd8 {[%clk 0:00:04.7]} 38. Nc4 {[%clk 0:00:03.2]} 38... Rd1
{[%clk 0:00:04.3]} 39. e5 {[%clk 0:00:03.3]} 39... Ra1 {[%clk 0:00:03.6]} 40.
Kxg3 {[%clk 0:00:02.2]} 40... Rxa2 {[%clk 0:00:04]} 41. e4 {[%clk 0:00:02]}
41... Rc2 {[%clk 0:00:03]} 42. Rd3 {[%clk 0:00:01.4]} 42... Rc3 {[%clk
0:00:03.2]} 0-1

[Event "Late-Titled-Tuesday-Blitz-January-23-2024"]
[Site "Chess.com"]
[Date "2024.01.23"]
[Round "5"]
[White "ChessSwole"]
[Black "NovakRatko"]
[Result "1-0"]
[WhiteElo "2609"]
[BlackElo "2346"]
[TimeControl "180+1"]
[EndTime "14:55:03 PST"]
[Termination "ChessSwole won by resignation"]

1. e4 {[%clk 0:03:00.9]} 1... d5 {[%clk 0:02:59.9]} 2. exd5 {[%clk 0:03:00.5]}
2... c6 {[%clk 0:03:00.6]} 3. dxc6 {[%clk 0:03:00.2]} 3... Nxc6 {[%clk
0:03:01.5]} 4. Nf3 {[%clk 0:03:00.8]} 4... e5 {[%clk 0:03:02.1]} 5. Bb5 {[%clk
0:03:01.3]} 5... Bd6 {[%clk 0:03:02.4]} 6. d4 {[%clk 0:02:58.5]} 6... exd4
{[%clk 0:03:03.3]} 7. Nxd4 {[%clk 0:02:58.4]} 7... Ne7 {[%clk 0:03:03.8]} 8. O-O
{[%clk 0:02:51.1]} 8... O-O {[%clk 0:03:03.6]} 9. Nxc6 {[%clk 0:02:51.1]} 9...
Nxc6 {[%clk 0:03:04.5]} 10. h3 {[%clk 0:02:36.3]} 10... Bf5 {[%clk 0:03:03.8]}
11. Bd3 {[%clk 0:02:27.6]} 11... Bxd3 {[%clk 0:03:02.1]} 12. Qxd3 {[%clk
0:02:27.3]} 12... Nb4 {[%clk 0:03:02.4]} 13. Qd1 {[%clk 0:02:19.4]} 13... Be5
{[%clk 0:02:58.9]} 14. Nd2 {[%clk 0:02:10.8]} 14... Qc7 {[%clk 0:02:53.5]} 15.
c3 {[%clk 0:02:07.9]} 15... Nd3 {[%clk 0:02:52.8]} 16. Nf3 {[%clk 0:02:08]}
16... Rad8 {[%clk 0:02:46.8]} 17. Nxe5 {[%clk 0:02:01.5]} 17... Qxe5 {[%clk
0:02:38.6]} 18. Qf3 {[%clk 0:01:58.1]} 18... Qb5 {[%clk 0:02:35.7]} 19. b3
{[%clk 0:01:50]} 19... Rd6 {[%clk 0:02:28.8]} 20. c4 {[%clk 0:01:48.6]} 20...
Qd7 {[%clk 0:02:28.7]} 21. Be3 {[%clk 0:01:43.3]} 21... b6 {[%clk 0:02:20.1]}
22. Rfd1 {[%clk 0:01:38.5]} 22... Ne5 {[%clk 0:02:15.2]} 23. Qe2 {[%clk
0:01:36.9]} 23... Re8 {[%clk 0:02:15.5]} 24. Rxd6 {[%clk 0:01:35.6]} 24... Qxd6
{[%clk 0:02:15.7]} 25. Rd1 {[%clk 0:01:36.1]} 25... Qc6 {[%clk 0:02:12.1]} 26.
Qd2 {[%clk 0:01:30.4]} 26... h6 {[%clk 0:02:03.5]} 27. Qd5 {[%clk 0:01:28.4]}
27... Qg6 {[%clk 0:01:54.1]} 28. Bf4 {[%clk 0:01:23.5]} 28... Qf6 {[%clk
0:01:40.3]} 29. Bg3 {[%clk 0:01:18.1]} 29... Ng6 {[%clk 0:01:38.7]} 30. Qd7
{[%clk 0:01:05.2]} 30... Re2 {[%clk 0:01:38.2]} 31. Qd8+ {[%clk 0:01:02.4]}
31... Qxd8 {[%clk 0:01:37.2]} 32. Rxd8+ {[%clk 0:01:03.3]} 32... Kh7 {[%clk
0:01:38]} 33. Rd7 {[%clk 0:00:58.6]} 33... Rxa2 {[%clk 0:01:31.7]} 34. Rxf7
{[%clk 0:00:58.6]} 34... h5 {[%clk 0:01:32.5]} 35. Bb8 {[%clk 0:00:54.2]} 35...
Ra3 {[%clk 0:01:29.9]} 36. b4 {[%clk 0:00:51.9]} 36... a5 {[%clk 0:01:23.1]} 37.
c5 {[%clk 0:00:43.3]} 37... bxc5 {[%clk 0:01:22.8]} 38. bxc5 {[%clk 0:00:44.2]}
38... Rc3 {[%clk 0:01:23.3]} 39. Bd6 {[%clk 0:00:41.4]} 39... a4 {[%clk
0:01:19.4]} 40. Ra7 {[%clk 0:00:41.1]} 40... a3 {[%clk 0:01:19.3]} 41. g3 {[%clk
0:00:41]} 41... Nh8 {[%clk 0:01:10.2]} 42. Kg2 {[%clk 0:00:28.2]} 42... Kh6
{[%clk 0:01:08.9]} 43. Bf8 {[%clk 0:00:24]} 43... Kg6 {[%clk 0:00:59.6]} 44.
Rxg7+ {[%clk 0:00:20.5]} 44... Kf5 {[%clk 0:00:56.9]} 45. Ra7 {[%clk 0:00:21.4]}
45... Ng6 {[%clk 0:00:56.2]} 46. Bd6 {[%clk 0:00:21.1]} 46... Ne5 {[%clk
0:00:43.8]} 47. Bxe5 {[%clk 0:00:19.5]} 47... Kxe5 {[%clk 0:00:43.8]} 48. c6
{[%clk 0:00:17.9]} 48... Kd6 {[%clk 0:00:33.8]} 49. c7 {[%clk 0:00:18.2]} 49...
Kd7 {[%clk 0:00:31.6]} 50. g4 {[%clk 0:00:18.7]} 50... hxg4 {[%clk 0:00:31.6]}
51. hxg4 {[%clk 0:00:19.6]} 51... Ke6 {[%clk 0:00:29.8]} 52. Rxa3 {[%clk
0:00:18.2]} 52... Rxc7 {[%clk 0:00:28.9]} 53. Rf3 {[%clk 0:00:18.5]} 53... Rc1
{[%clk 0:00:26.6]} 54. Kg3 {[%clk 0:00:18.8]} 54... Ke5 {[%clk 0:00:25.3]} 55.
Kh4 {[%clk 0:00:18.9]} 55... Rc3 {[%clk 0:00:24.1]} 56. Rxc3 {[%clk 0:00:18.8]}
1-0

[Event "Late-Titled-Tuesday-Blitz-January-23-2024"]
[Site "Chess.com"]
[Date "2024.01.23"]
[Round "5"]
[White "DenLaz"]
[Black "vugarrasulov"]
[Result "0-1"]
[WhiteElo "3076"]
[BlackElo "2943"]
[TimeControl "180+1"]
[EndTime "14:55:04 PST"]
[Termination "vugarrasulov won by resignation"]

1. d4 {[%clk 0:03:00.9]} 1... Nf6 {[%clk 0:03:00.4]} 2. c4 {[%clk 0:03:01.4]}
2... e6 {[%clk 0:03:00.4]} 3. Nf3 {[%clk 0:03:01.9]} 3... d5 {[%clk 0:03:00.5]}
4. g3 {[%clk 0:03:02.2]} 4... Be7 {[%clk 0:02:58.9]} 5. Bg2 {[%clk 0:03:02.7]}
5... O-O {[%clk 0:02:59.6]} 6. O-O {[%clk 0:03:03.4]} 6... dxc4 {[%clk
0:02:58.6]} 7. Qc2 {[%clk 0:03:04]} 7... a6 {[%clk 0:02:54.9]} 8. a4 {[%clk
0:03:04.4]} 8... Bd7 {[%clk 0:02:55.2]} 9. Qxc4 {[%clk 0:03:04]} 9... Bc6 {[%clk
0:02:55.6]} 10. Bg5 {[%clk 0:03:04.3]} 10... Nbd7 {[%clk 0:02:51.5]} 11. Nc3
{[%clk 0:03:04.8]} 11... a5 {[%clk 0:02:47.8]} 12. Rfd1 {[%clk 0:03:03.8]} 12...
h6 {[%clk 0:02:47.5]} 13. Bxf6 {[%clk 0:03:03.4]} 13... Nxf6 {[%clk 0:02:48.4]}
14. e3 {[%clk 0:03:03.8]} 14... Bxf3 {[%clk 0:02:47.4]} 15. Bxf3 {[%clk
0:03:03.6]} 15... c6 {[%clk 0:02:48.3]} 16. Kg2 {[%clk 0:03:02.9]} 16... Qb6
{[%clk 0:02:45.7]} 17. Qe2 {[%clk 0:03:02.2]} 17... Rfd8 {[%clk 0:02:44.8]} 18.
h4 {[%clk 0:03:02]} 18... Rd7 {[%clk 0:02:41]} 19. h5 {[%clk 0:02:58.8]} 19...
Rad8 {[%clk 0:02:41.1]} 20. Qc2 {[%clk 0:02:55.2]} 20... Bb4 {[%clk 0:02:34.3]}
21. Rac1 {[%clk 0:02:45.9]} 21... Nd5 {[%clk 0:02:28.4]} 22. Ne4 {[%clk
0:02:43.4]} 22... Be7 {[%clk 0:02:25.9]} 23. Qe2 {[%clk 0:02:40.6]} 23... Nb4
{[%clk 0:02:22.6]} 24. Nd2 {[%clk 0:02:38.3]} 24... Qa6 {[%clk 0:02:15.9]} 25.
Nc4 {[%clk 0:02:30.4]} 25... Rc7 {[%clk 0:02:08.2]} 26. b3 {[%clk 0:02:18.8]}
26... Nd5 {[%clk 0:02:02.4]} 27. Be4 {[%clk 0:02:05.3]} 27... Nf6 {[%clk
0:01:59.1]} 28. Bd3 {[%clk 0:02:04.5]} 28... Qa8 {[%clk 0:01:58.6]} 29. Qf3
{[%clk 0:02:03.6]} 29... c5 {[%clk 0:01:44.4]} 30. dxc5 {[%clk 0:01:22.2]} 30...
Rxc5 {[%clk 0:01:41]} 31. Nb6 {[%clk 0:01:21.4]} 31... Qb8 {[%clk 0:01:36.7]}
32. Rxc5 {[%clk 0:01:20.8]} 32... Bxc5 {[%clk 0:01:37.6]} 33. Nc4 {[%clk
0:01:21.4]} 33... b6 {[%clk 0:01:35.9]} 34. Be2 {[%clk 0:01:15.5]} 34... Rxd1
{[%clk 0:01:34.8]} 35. Bxd1 {[%clk 0:01:16.4]} 35... Qd8 {[%clk 0:01:32]} 36.
Ne5 {[%clk 0:01:07.7]} 36... Qd5 {[%clk 0:01:28.9]} 37. Qxd5 {[%clk 0:01:05.9]}
37... Nxd5 {[%clk 0:01:29.8]} 38. Kf3 {[%clk 0:01:00.3]} 38... Nf6 {[%clk
0:01:28.5]} 39. g4 {[%clk 0:00:54.7]} 39... Kf8 {[%clk 0:01:29]} 40. Nc4 {[%clk
0:00:41]} 40... Ke7 {[%clk 0:01:29]} 41. Kg2 {[%clk 0:00:39.6]} 41... Ne4 {[%clk
0:01:25.9]} 42. Bf3 {[%clk 0:00:37.1]} 42... Nd6 {[%clk 0:01:25.7]} 43. Ne5
{[%clk 0:00:37.3]} 43... f6 {[%clk 0:01:22.2]} 44. Nd3 {[%clk 0:00:37.1]} 44...
Nf7 {[%clk 0:01:15.8]} 45. Be2 {[%clk 0:00:35.4]} 45... Kd6 {[%clk 0:01:14.9]}
46. Nb2 {[%clk 0:00:29.4]} 46... Bb4 {[%clk 0:01:12.5]} 47. Nc4+ {[%clk
0:00:29.2]} 47... Kc5 {[%clk 0:01:12.3]} 48. f4 {[%clk 0:00:27.9]} 48... Bc3
{[%clk 0:01:10]} 49. Kf3 {[%clk 0:00:23.6]} 49... Nd8 {[%clk 0:01:09.9]} 50. Bd3
{[%clk 0:00:18.5]} 50... Nc6 {[%clk 0:01:10.1]} 51. Be4 {[%clk 0:00:19]} 51...
Nb4 {[%clk 0:01:07.1]} 52. Na3 {[%clk 0:00:16.1]} 52... Na2 {[%clk 0:01:03.1]}
53. Nc2 {[%clk 0:00:15.2]} 53... Nc1 {[%clk 0:01:01.1]} 54. Bg6 {[%clk
0:00:09.9]} 54... Nxb3 {[%clk 0:01:01.2]} 55. Bf7 {[%clk 0:00:10.8]} 55... Kd6
{[%clk 0:00:58.7]} 56. Na3 {[%clk 0:00:10]} 56... Ke7 {[%clk 0:00:55]} 57. Bg6
{[%clk 0:00:08.8]} 57... Bb4 {[%clk 0:00:52]} 58. Nc4 {[%clk 0:00:08.9]} 58...
Bc5 {[%clk 0:00:51.1]} 59. Bc2 {[%clk 0:00:09.6]} 59... Nc1 {[%clk 0:00:50]} 60.
Nd2 {[%clk 0:00:08.7]} 60... Na2 {[%clk 0:00:49.7]} 61. Bb3 {[%clk 0:00:09]}
61... Nb4 {[%clk 0:00:49.8]} 62. Nc4 {[%clk 0:00:07.8]} 62... Nd3 {[%clk
0:00:48.3]} 63. Ke2 {[%clk 0:00:06.6]} 63... Nc1+ {[%clk 0:00:48.3]} 0-1

[Event "Late-Titled-Tuesday-Blitz-January-23-2024"]
[Site "Chess.com"]
[Date "2024.01.23"]
[Round "5"]
[White "Angry_Twin"]
[Black "NikolaGry"]
[Result "1-0"]
[WhiteElo "2994"]
[BlackElo "2749"]
[TimeControl "180+1"]
[EndTime "14:55:07 PST"]
[Termination "Angry_Twin won on time"]

1. e4 {[%clk 0:03:00.9]} 1... e5 {[%clk 0:02:56.7]} 2. Nf3 {[%clk 0:03:00.7]}
2... d6 {[%clk 0:02:54.9]} 3. Bc4 {[%clk 0:02:56.3]} 3... Nf6 {[%clk 0:02:54]}
4. d3 {[%clk 0:02:55.2]} 4... c6 {[%clk 0:02:51.9]} 5. c3 {[%clk 0:02:54.8]}
5... Be7 {[%clk 0:02:50.9]} 6. O-O {[%clk 0:02:54.6]} 6... O-O {[%clk
0:02:49.9]} 7. Re1 {[%clk 0:02:54.1]} 7... h6 {[%clk 0:02:37.9]} 8. Nbd2 {[%clk
0:02:53.5]} 8... Be6 {[%clk 0:02:37.2]} 9. Nf1 {[%clk 0:02:45.5]} 9... Nbd7
{[%clk 0:02:22.2]} 10. Ng3 {[%clk 0:02:44.5]} 10... Re8 {[%clk 0:02:12.1]} 11.
Bb3 {[%clk 0:02:42.2]} 11... Bxb3 {[%clk 0:02:08.5]} 12. axb3 {[%clk 0:02:41.6]}
12... a5 {[%clk 0:02:08]} 13. Nf5 {[%clk 0:02:41.4]} 13... Bf8 {[%clk
0:02:07.9]} 14. h3 {[%clk 0:02:41.8]} 14... Kh7 {[%clk 0:02:06.9]} 15. Qd2
{[%clk 0:02:31.4]} 15... d5 {[%clk 0:01:55]} 16. exd5 {[%clk 0:02:27.7]} 16...
cxd5 {[%clk 0:01:53.8]} 17. Qc2 {[%clk 0:02:26.4]} 17... g6 {[%clk 0:01:35.8]}
18. Ng3 {[%clk 0:02:25.9]} 18... Bg7 {[%clk 0:01:34.6]} 19. Be3 {[%clk
0:02:26.5]} 19... Rc8 {[%clk 0:01:30.2]} 20. Qd2 {[%clk 0:02:09.2]} 20... b6
{[%clk 0:01:26.6]} 21. Ra4 {[%clk 0:02:04.1]} 21... Bf8 {[%clk 0:01:09.6]} 22.
Rh4 {[%clk 0:02:00.7]} 22... Ng8 {[%clk 0:01:04.6]} 23. Nf1 {[%clk 0:01:28.4]}
23... d4 {[%clk 0:00:56.8]} 24. cxd4 {[%clk 0:01:07.3]} 24... Bb4 {[%clk
0:00:55.5]} 25. Qd1 {[%clk 0:01:07.3]} 25... Bxe1 {[%clk 0:00:52.2]} 26. Qxe1
{[%clk 0:01:07.3]} 26... exd4 {[%clk 0:00:45.6]} 27. Rxd4 {[%clk 0:01:07]} 27...
Qe7 {[%clk 0:00:43.2]} 28. Qd2 {[%clk 0:01:05.1]} 28... Nc5 {[%clk 0:00:41.8]}
29. Qd1 {[%clk 0:00:56]} 29... Rcd8 {[%clk 0:00:38.1]} 30. Ng3 {[%clk
0:00:55.6]} 30... Nf6 {[%clk 0:00:24.6]} 31. Rh4 {[%clk 0:00:52.1]} 31... Rxd3
{[%clk 0:00:18.8]} 32. Qc2 {[%clk 0:00:17.8]} 32... Rxe3 {[%clk 0:00:17.8]} 33.
fxe3 {[%clk 0:00:18.7]} 33... Qxe3+ {[%clk 0:00:17.3]} 34. Kh2 {[%clk
0:00:19.6]} 34... Kg7 {[%clk 0:00:15.3]} 35. Nd4 {[%clk 0:00:17.1]} 35... Qe5
{[%clk 0:00:12.8]} 36. Nf3 {[%clk 0:00:15.8]} 36... Qd6 {[%clk 0:00:11.2]} 37.
Qc1 {[%clk 0:00:15.9]} 37... h5 {[%clk 0:00:08.4]} 38. Nd4 {[%clk 0:00:10.6]}
38... Nce4 {[%clk 0:00:07.3]} 39. Ne2 {[%clk 0:00:09.6]} 39... g5 {[%clk
0:00:04.4]} 40. Kg1 {[%clk 0:00:07.1]} 40... Qc5+ {[%clk 0:00:02.5]} 41. Qxc5
{[%clk 0:00:07.2]} 41... bxc5 {[%clk 0:00:02.2]} 42. Rxh5 {[%clk 0:00:04.1]}
42... Nxh5 {[%clk 0:00:01.5]} 43. Nxh5+ {[%clk 0:00:05]} 43... Kg6 {[%clk
0:00:02]} 44. g4 {[%clk 0:00:05.9]} 44... Nf6 {[%clk 0:00:01.4]} 45. Nhg3 {[%clk
0:00:06.6]} 1-0

[Event "Late-Titled-Tuesday-Blitz-January-23-2024"]
[Site "Chess.com"]
[Date "2024.01.23"]
[Round "5"]
[White "vladislavkovalev"]
[Black "Kamilek84"]
[Result "0-1"]
[WhiteElo "2859"]
[BlackElo "2707"]
[TimeControl "180+1"]
[EndTime "14:55:12 PST"]
[Termination "Kamilek84 won on time"]

1. e4 {[%clk 0:03:00.9]} 1... d5 {[%clk 0:02:59.7]} 2. exd5 {[%clk 0:03:00.9]}
2... Qxd5 {[%clk 0:03:00.3]} 3. Nc3 {[%clk 0:03:01.4]} 3... Qd8 {[%clk
0:03:00.3]} 4. d4 {[%clk 0:03:02]} 4... Nf6 {[%clk 0:03:00.2]} 5. Nf3 {[%clk
0:03:01.2]} 5... g6 {[%clk 0:03:00.3]} 6. h3 {[%clk 0:03:00]} 6... Bg7 {[%clk
0:03:00.2]} 7. Bc4 {[%clk 0:03:00.6]} 7... O-O {[%clk 0:03:00]} 8. O-O {[%clk
0:03:01.2]} 8... a6 {[%clk 0:03:00.3]} 9. a4 {[%clk 0:03:01.3]} 9... Nc6 {[%clk
0:02:56.4]} 10. Re1 {[%clk 0:03:01.6]} 10... e6 {[%clk 0:02:49.7]} 11. Bf4
{[%clk 0:02:24.7]} 11... Ne7 {[%clk 0:02:38.8]} 12. Qd2 {[%clk 0:02:21.2]} 12...
b6 {[%clk 0:02:36.5]} 13. Rad1 {[%clk 0:02:14.5]} 13... Bb7 {[%clk 0:02:35.3]}
14. Ne5 {[%clk 0:02:15.2]} 14... Nf5 {[%clk 0:02:28.4]} 15. Nxf7 {[%clk
0:01:34.8]} 15... Rxf7 {[%clk 0:02:26.5]} 16. Bxe6 {[%clk 0:01:35.6]} 16... Nd5
{[%clk 0:01:55]} 17. Ne4 {[%clk 0:01:16.4]} 17... Nxf4 {[%clk 0:01:37.1]} 18.
Qxf4 {[%clk 0:01:14.4]} 18... Bd5 {[%clk 0:01:22.3]} 19. Bxf7+ {[%clk 0:01:08]}
19... Bxf7 {[%clk 0:01:20.9]} 20. c3 {[%clk 0:01:02.9]} 20... h6 {[%clk
0:01:16.4]} 21. d5 {[%clk 0:01:00.3]} 21... Qd7 {[%clk 0:01:03.2]} 22. d6 {[%clk
0:00:57.6]} 22... cxd6 {[%clk 0:00:35.1]} 23. Nxd6 {[%clk 0:00:54.4]} 23... Qc7
{[%clk 0:00:27.6]} 24. Qf3 {[%clk 0:00:44.5]} 24... Rf8 {[%clk 0:00:26]} 25.
Nxf5 {[%clk 0:00:44.1]} 25... gxf5 {[%clk 0:00:25.6]} 26. Rd2 {[%clk 0:00:33.6]}
26... Bb3 {[%clk 0:00:18.6]} 27. Qd3 {[%clk 0:00:12.1]} 27... Qc6 {[%clk
0:00:12.3]} 28. Qxa6 {[%clk 0:00:10.9]} 28... Bxa4 {[%clk 0:00:11.9]} 29. Qd3
{[%clk 0:00:08]} 29... Bb3 {[%clk 0:00:11.4]} 30. Qd6 {[%clk 0:00:08.2]} 30...
Qxd6 {[%clk 0:00:10.6]} 31. Rxd6 {[%clk 0:00:09.1]} 31... b5 {[%clk 0:00:10.9]}
32. Rd7 {[%clk 0:00:09.7]} 32... Bc4 {[%clk 0:00:10.6]} 33. Red1 {[%clk
0:00:05.8]} 33... Re8 {[%clk 0:00:08.2]} 34. Rd8 {[%clk 0:00:05.9]} 34... Kf7
{[%clk 0:00:08.2]} 35. R1d7+ {[%clk 0:00:05.3]} 35... Re7 {[%clk 0:00:08.3]} 36.
Rxe7+ {[%clk 0:00:05.8]} 36... Kxe7 {[%clk 0:00:08.6]} 37. Rb8 {[%clk
0:00:06.7]} 37... Be5 {[%clk 0:00:08.1]} 38. Rb6 {[%clk 0:00:07.3]} 38... h5
{[%clk 0:00:07.5]} 39. Rh6 {[%clk 0:00:06.6]} 39... Be2 {[%clk 0:00:04.7]} 40.
f3 {[%clk 0:00:05.8]} 40... Bf4 {[%clk 0:00:04.8]} 41. Rxh5 {[%clk 0:00:06]}
41... Be3+ {[%clk 0:00:04.8]} 42. Kh2 {[%clk 0:00:06.2]} 42... f4 {[%clk
0:00:05.3]} 43. h4 {[%clk 0:00:03.4]} 43... Kf6 {[%clk 0:00:05.4]} 44. b4 {[%clk
0:00:02.3]} 44... Bd2 {[%clk 0:00:04.9]} 45. Rc5 {[%clk 0:00:02.4]} 45... Bc4
{[%clk 0:00:03]} 46. Kh3 {[%clk 0:00:02.2]} 46... Bxc3 {[%clk 0:00:03.2]} 0-1